Workbook

Sheet Medical Rates
A1: 2018 Active Employee Rates
A2: 500 S | B2: Total Rate | C2: Mo Employee Contribution | D2: EE Per Pay | E2: Mo Employer Contribution | F2: Wellness Credit | G2: Rate with Credit | H2: EE Per Pay
A3: EE | B3: $552.49 | C3: $97.80 | D3: =C3/2 -> $48.90 | E3: =B3-C3 -> $454.69 | F3: $40.00 | G3: =C3-F3 -> $57.80 | H3: =G3/2 -> $28.90
A4: ES | B4: $1,270.73 | C4: $366.36 | D4: =C4/2 -> $183.18 | E4: $904.37 | F4: $80.00 | G4: $286.36 | H4: =G4/2 -> $143.18
A5: ES (one partic) | B5: $1,148.76 | C5: $366.36 | D5: $183.18 | E5: $782.40 | F5: $40.00 | G5: $326.36 | H5: $163.18
A6: EC | B6: $1,011.06 | C6: $267.86 | D6: $133.93 | E6: $743.20 | F6: $40.00 | G6: $227.86 | H6: $113.93
A7: EF | B7: $1,657.48 | C7: $453.50 | D7: $226.75 | E7: $1,203.98 | F7: $80.00 | G7: $373.50 | H7: $186.75
A8: EF (one partic) | B8: $1,498.38 | C8: $453.50 | D8: $226.75 | E8: $1,044.88 | F8: $40.00 | G8: $413.50 | H8: $206.75
A9: 500 P
A10: EE | B10: $573.54 | C10: $103.00 | D10: $51.50 | E10: =B10-C10 -> $470.54 | F10: $40.00 | G10: =C10-F10 -> $63.00 | H10: $31.50
A11: ES | B11: $1,319.15 | C11: $392.13 | D11: $196.07 | E11: $927.02 | F11: $80.00 | G11: $312.13 | H11: $156.07
A12: ES (one partic) | B12: $1,192.53 | C12: $392.13 | D12: $196.07 | E12: $800.40 | F12: $40.00 | G12: $352.13 | H12: $176.07
A13: EC | B13: $1,049.58 | C13: $288.34 | D13: $144.17 | E13: $761.24 | F13: $40.00 | G13: $248.34 | H13: $124.17
A14: EF | B14: $1,720.63 | C14: $487.12 | D14: $243.56 | E14: $1,233.51 | F14: $80.00 | G14: $407.12 | H14: $203.56
A15: EF (one partic) | B15: $1,555.47 | C15: $487.12 | D15: $243.56 | E15: $1,068.35 | F15: $40.00 | G15: $447.12 | H15: $223.56
A16: 1000 S
A17: EE | B17: $540.25 | C17: $62.24 | D17: $31.12 | E17: =B17-C17 -> $478.01 | F17: $40.00 | G17: =C17-F17 -> $22.24 | H17: $11.12
A18: ES | B18: $1,242.57 | C18: $284.54 | D18: $142.27 | E18: $958.03 | F18: $80.00 | G18: $204.54 | H18: $102.27
A19: ES (one partic) | B19: $1,123.30 | C19: $284.54 | D19: $142.27 | E19: $838.76 | F19: $40.00 | G19: $244.54 | H19: $122.27
A20: EC | B20: $988.65 | C20: $202.74 | D20: $101.37 | E20: $785.91 | F20: $40.00 | G20: $162.74 | H20: $81.37
A21: EF | B21: $1,620.74 | C21: $346.78 | D21: $173.39 | E21: $1,273.96 | F21: $80.00 | G21: $266.78 | H21: $133.39
A22: EF (one partic) | B22: $1,465.17 | C22: $346.78 | D22: $173.39 | E22: $1,118.39 | F22: $40.00 | G22: $306.78 | H22: $153.39
A23: 1000 P
A24: EE | B24: $560.83 | C24: $64.24 | D24: $32.12 | E24: =B24-C24 -> $496.59 | F24: $40.00 | G24: =C24-F24 -> $24.24 | H24: $12.12
A25: ES | B25: $1,289.91 | C25: $302.94 | D25: $151.47 | E25: $986.97 | F25: $80.00 | G25: $222.94 | H25: $111.47
A26: ES (one partic) | B26: $1,166.10 | C26: $302.94 | D26: $151.47 | E26: $863.16 | F26: $40.00 | G26: $262.94 | H26: $131.47
A27: EC | B27: $1,026.32 | C27: $217.38 | D27: $108.69 | E27: $808.94 | F27: $40.00 | G27: $177.38 | H27: $88.69
A28: EF | B28: $1,682.49 | C28: $370.80 | D28: $185.40 | E28: $1,311.69 | F28: $80.00 | G28: $290.80 | H28: $145.40
A29: EF (one partic) | B29: $1,521.00 | C29: $370.80 | D29: $185.40 | E29: $1,150.20 | F29: $40.00 | G29: $330.80 | H29: $165.40
A30: 2018 Retiree Rates
A31: 500 S | B31: Total Rate | C31: Mo Retiree Contribution | D31: Per Pay | E31: Mo Employer Contribution | F31: Wellness Credit | G31: Rate with Credit | H31: Per Pay
A32: EE | B32: =B3 -> $552.49 | C32: =B32*0.6 -> $331.49 | E32: =B32*0.4 -> $221.00 | F32: $40.00 | G32: =C32-F32 -> $291.49
A33: ES | B33: =B4 -> $1,270.73 | C33: =B33*0.6 -> $762.44 | E33: =B33*0.4 -> $508.29 | F33: $80.00 | G33: =C33-F33 -> $682.44
A34: ES (one partic) | B34: $1,148.76 | C34: $689.26 | E34: $459.50 | F34: $40.00 | G34: $649.26
A35: EC | B35: $1,011.06 | C35: $606.64 | E35: $404.42 | F35: $40.00 | G35: $566.64
A36: EF | B36: $1,657.48 | C36: $994.49 | E36: $662.99 | F36: $80.00 | G36: $914.49
A37: EF (one partic) | B37: $1,498.38 | C37: =B37*0.65 -> $973.95 | E37: =B37*0.35 -> $524.43 | F37: $40.00 | G37: $933.95
A38: 500 P
A39: EE | B39: =B10 -> $573.54 | C39: =B39*0.6 -> $344.12 | E39: =B39*0.4 -> $229.42 | F39: $40.00 | G39: $304.12
A40: ES | B40: $1,319.15 | C40: $791.49 | E40: =B40*0.4 -> $527.66 | F40: $80.00 | G40: $711.49
A41: ES (one partic) | B41: $1,192.53 | C41: $715.52 | E41: $477.01 | F41: $40.00 | G41: $675.52
A42: EC | B42: $1,049.58 | C42: $629.75 | E42: $419.83 | F42: $40.00 | G42: $589.75
A43: EF | B43: $1,720.63 | C43: $1,032.38 | E43: $688.25 | F43: $80.00 | G43: $952.38
A44: EF (one partic) | B44: $1,555.47 | C44: =B44*0.65 -> $1,011.06 | E44: =B44*0.35 -> $544.41 | F44: $40.00 | G44: $971.06
A45: 1000 S
A46: EE | B46: =B17 -> $540.25 | C46: =B46*0.6 -> $324.15 | E46: =B46*0.4 -> $216.10 | F46: $40.00 | G46: $284.15
A47: ES | B47: $1,242.57 | C47: $745.54 | E47: $497.03 | F47: $80.00 | G47: $665.54
A48: ES (one partic) | B48: $1,123.30 | C48: $673.98 | E48: $449.32 | F48: $40.00 | G48: $633.98
A49: EC | B49: $988.65 | C49: $593.19 | E49: $395.46 | F49: $40.00 | G49: $553.19
A50: EF | B50: $1,620.74 | C50: $972.44 | E50: $648.30 | F50: $80.00 | G50: $892.44
A51: EF (one partic) | B51: $1,465.17 | C51: =B51*0.65 -> $952.36 | E51: =B51*0.35 -> $512.81 | F51: $40.00 | G51: $912.36
A52: 1000 P
A53: EE | B53: =B24 -> $560.83 | C53: =B53*0.6 -> $336.50 | E53: =B53*0.4 -> $224.33 | F53: $40.00 | G53: $296.50
A54: ES | B54: $1,289.91 | C54: $773.95 | E54: $515.96 | F54: $80.00 | G54: $693.95
A55: ES (one partic) | B55: $1,166.10 | C55: $699.66 | E55: $466.44 | F55: $40.00 | G55: $659.66
A56: EC | B56: $1,026.32 | C56: $615.79 | E56: $410.53 | F56: $40.00 | G56: $575.79
A57: EF | B57: $1,682.49 | C57: $1,009.49 | E57: $673.00 | F57: $80.00 | G57: $929.49
A58: EF (one partic) | B58: $1,521.00 | C58: =B58*0.65 -> $988.65 | E58: =B58*0.35 -> $532.35 | F58: $40.00 | G58: $948.65

Sheet COBRA Rates
A1: Medical | E1: Dental
A2: 500 S | B2: Total Rate | C2: COBRA Rate | E2: Base Plan | F2: Total Rate | G2: COBRA Rate
A3: EE | B3: $552.49 | C3: =B3*1.02 -> $563.54 | E3: EE | F3: $4.95 | G3: =F3*1.02 -> $5.05
A4: ES | B4: $1,270.73 | C4: =B4*1.02 -> $1,296.14 | E4: Low Plan | F4: TOTAL | G4: COBRA Rate
A5: ES (one partic) | B5: $1,270.73 | C5: $1,296.14 | E5: EE | F5: $22.83 | G5: =F5*1.02 -> $23.29
A6: EC | B6: $1,011.06 | C6: $1,031.28 | E6: EF | F6: $62.21 | G6: =F6*1.02 -> $63.45
A7: EF | B7: $1,657.48 | C7: $1,690.63 | E7: High Plan | F7: TOTAL | G7: COBRA Rate
A8: EF (one partic) | B8: $1,657.48 | C8: $1,690.63 | E8: EE | F8: $33.87 | G8: =F8*1.02 -> $34.55
A9: 500 P | C9: COBRA Rate | E9: EF | F9: $97.33 | G9: =F9*1.02 -> $99.28
A10: EE | B10: $573.54 | C10: =B10*1.02 -> $585.01 | E10: DHMO Plan | F10: TOTAL | G10: COBRA Rate
A11: ES | B11: $1,319.15 | C11: =B11*1.02 -> $1,345.53 | E11: EE | F11: $14.65 | G11: =F11*1.02 -> $14.94
A12: ES (one partic) | B12: $1,319.15 | C12: $1,345.53 | E12: EF | F12: $33.54 | G12: =F12*1.02 -> $34.21
A13: EC | B13: $1,049.58 | C13: $1,070.57
A14: EF | B14: $1,720.63 | C14: $1,755.04 | E14: Vision
A15: EF (one partic) | B15: $1,720.63 | C15: $1,755.04 | E15: Base Plan | F15: Total Rate
A16: 1000 S | C16: COBRA Rate | E16: EE | F16: $0.38 | G16: =F16*1.02 -> $0.39
A17: EE | B17: $540.25 | C17: =B17*1.02 -> $551.06 | E17: Buy-Up | F17: Total Rate
A18: ES | B18: $1,242.57 | C18: =B18*1.02 -> $1,267.42 | E18: EE Only | F18: $6.22 | G18: =F18*1.02 -> $6.34
A19: ES (one partic) | B19: $1,242.57 | C19: $1,267.42 | E19: EE + Spouse | F19: $9.90 | G19: $10.10
A20: EC | B20: $988.65 | C20: $1,008.42 | E20: EE + Child(ren) | F20: $12.47 | G20: $12.72
A21: EF | B21: $1,620.74 | C21: $1,653.15 | E21: Family | F21: $16.48 | G21: $16.81
A22: EF (one partic) | B22: $1,620.74 | C22: $1,653.15
A23: 1000 P | C23: COBRA Rate | E23: EAP
A24: EE | B24: $560.83 | C24: =B24*1.02 -> $572.05 | E24: Per contract | F24: $2.70 | G24: =F24*1.02 -> $2.75
A25: ES | B25: $1,289.91 | C25: =B25*1.02 -> $1,315.71
A26: ES (one partic) | B26: $1,289.91 | C26: $1,315.71
A27: EC | B27: $1,026.32 | C27: $1,046.85
A28: EF | B28: $1,682.49 | C28: $1,716.14
A29: EF (one partic) | B29: $1,682.49 | C29: $1,716.14
A41: Dental CIGNA
A46: EYEMED VISION
A48: Base Plan | B48: $0.34
A50: Vision Plan | B50: TOTAL
A51: EE Only | B51: $5.66
A52: EE + Spouse | B52: $9.00
A53: EE + Child(ren) | B53: $11.34
A54: Family | B54: $14.98

Sheet DP Med Rates
B2: To whom does this imputed income analysis apply? | C2: EEs can only pay their share of costs for EE and depedent coverage on a pre-tax basis for themselves and their tax qualifed dependents. Any portion of the EE's share of the contribution that is the result of a Domestic Partner (DP) or a DP's dependent cannot be paid with pre-tax dollars. The only exception to this is if a Domestic Partner meets the tax dependency rules as set forth in the Summary provided to EEs and certified by the EE. If the DP qualifies as a tax dependent, than the entire premium amount will be paid with pre-tax dollars and there is no need to pay post tax contributions or impute the income.
B3: Fair Market Value/NonTaxable: | C3: Represents the monthly total premium difference between the plan election the EE makes and the coverage the EE would have had, had the EE not had a domestic partner and/or his/her dependent partner's children added to the plan.
B4: Pre-Tax Deduction: | C4: Can only represent the EE and EE's dependent children's deductions unless the EE's DP and/or DP's dependent children meet the tax dependency rule and the EE certifies as such.
B5: After-Tax Deduction: | C5: Post Tax deductions are determined by taking the total monthly EE deduction and subtracting the EE's pre-tax deduction.
B6: Imputed Income: | C6: Represents the monhtly income for which the EE must be taxed. The imputed income is determined by subtracting the Fair Market Value and subtracting the EE's pre and post tax deductions. The remaining amount represents the "value" of the domestic partner coverage elected for which the EE must be taxed as income.
I8: Done | N8: Done | S8: Done
B9: Base Medical Plan | C9: $500 Network S | H9: $500 Network P | M9: $1,000 Network S | R9: $1,000 Network P
B10: EMPLOYEE | C10: Total | D10: ER | E10: EE | H10: Total | I10: ER | J10: EE | M10: Total | N10: ER | O10: EE | R10: Total | S10: ER | T10: EE
B11: Employee Only | C11: $552.49 | D11: =C11-E11 -> $454.69 | E11: $97.80 | H11: $573.54 | I11: =H11-J11 -> $470.54 | J11: $103.00 | M11: $540.25 | N11: =M11-O11 -> $478.01 | O11: $62.24 | R11: $560.83 | S11: =R11-T11 -> $496.59 | T11: $64.24
B12: Employee + Spouse | C12: $1,270.73 | D12: =C12-E12 -> $904.37 | E12: $366.36 | H12: $1,319.15 | I12: $927.02 | J12: $392.13 | M12: $1,242.57 | N12: $958.03 | O12: $284.54 | R12: $1,289.91 | S12: $986.97 | T12: $302.94
B13: Employee + Child(ren) | C13: $1,011.06 | D13: $743.20 | E13: $267.86 | H13: $1,049.58 | I13: $761.24 | J13: $288.34 | M13: $988.65 | N13: $785.91 | O13: $202.74 | R13: $1,026.32 | S13: $808.94 | T13: $217.38
B14: Employee + Family | C14: $1,657.48 | D14: $1,203.98 | E14: $453.50 | H14: $1,720.63 | I14: $1,233.51 | J14: $487.12 | M14: $1,620.74 | N14: $1,273.96 | O14: $346.78 | R14: $1,682.49 | S14: $1,311.69 | T14: $370.80
C18: $500 Network S | H18: $500 Network P | M18: $1000 Network S | R18: $1000 Network P
C19: Full-time EE (with or without Children) + Domestic Partner Only - Monthly | H19: Full-time EE (with or without Children) + Domestic Partner Only - Monthly | M19: Full-time EE (with or without Children) + Domestic Partner Only - Monthly | R19: Full-time EE (with or without Children) + Domestic Partner Only - Monthly
B20: EMPLOYEE | C20: Full Premium | D20: Non Taxable | E20: Pre-Tax Deduction | F20: After-Tax Deduction | G20: Imputed Income | H20: Full Premium | I20: Non Taxable | J20: Pre-Tax Deduction | K20: After-Tax Deduction | L20: Imputed Income | M20: Full Premium | N20: Non Taxable | O20: Pre-Tax Deduction | P20: After-Tax Deduction | Q20: Imputed Income | R20: Full Premium | S20: Non Taxable | T20: Pre-Tax Deduction | U20: After-Tax Deduction | V20: Imputed Income
B21: Employee Only | C21: $522.49 | D21: N/A | E21: N/A | F21: N/A | G21: N/A | H21: $573.54 | I21: N/A | J21: N/A | K21: N/A | L21: N/A | M21: $540.25 | N21: N/A | O21: N/A | P21: N/A | Q21: N/A | R21: $560.83 | S21: N/A | T21: N/A | U21: N/A | V21: N/A
A22: 12 | B22: Employee + Spouse | C22: $1,270.73 | D22: =D11 -> $454.69 | E22: =E11 -> $97.80 | F22: =E12-E11 -> $268.56 | G22: =C22-D22-E22-F22 -> $449.68 | H22: $1,319.15 | I22: =I11 -> $470.54 | J22: =J11 -> $103.00 | K22: =J12-J11 -> $289.13 | L22: =H22-I22-J22-K22 -> $456.48 | M22: $1,242.57 | N22: =N11 -> $478.01 | O22: =O11 -> $62.24 | P22: =O12-O11 -> $222.30 | Q22: =M22-N22-O22-P22 -> $480.02 | R22: $1,289.91 | S22: =S11 -> $496.59 | T22: =T11 -> $64.24 | U22: =T12-T11 -> $238.70 | V22: =R22-S22-T22-U22 -> $490.38
B23: Employee + Child(ren) | C23: $1,011.06 | D23: N/A | E23: N/A | F23: N/A | G23: N/A | H23: $1,049.58 | I23: N/A | J23: N/A | K23: N/A | L23: N/A | M23: $988.65 | N23: N/A | O23: N/A | P23: N/A | Q23: N/A | R23: $1,026.32 | S23: N/A | T23: N/A | U23: N/A | V23: N/A
A24: 14 | B24: Employee + Family | C24: $1,657.48 | D24: =D13 -> $743.20 | E24: =E13 -> $267.86 | F24: =E14-E13 -> $185.64 | G24: =C24-D24-E24-F24 -> $460.78 | H24: $1,720.63 | I24: =I13 -> $761.24 | J24: =J13 -> $288.34 | K24: =J14-J13 -> $198.78 | L24: =H24-I24-J24-K24 -> $472.27 | M24: $1,620.74 | N24: =N13 -> $785.91 | O24: =O13 -> $202.74 | P24: =O14-O13 -> $144.04 | Q24: =M24-N24-O24-P24 -> $488.05 | R24: $1,682.49 | S24: =S13 -> $808.94 | T24: =T13 -> $217.38 | U24: =T14-T13 -> $153.42 | V24: =R24-S24-T24-U24 -> $502.75
C26: Full-time EE Only + Domestic Partner + DP Child(ren) - Monthly | H26: Full-time EE Only + Domestic Partner + DP Child(ren) - Monthly | M26: Full-time EE Only + Domestic Partner + DP Child(ren) - Monthly | R26: Full-time EE Only + Domestic Partner + DP Child(ren) - Monthly
C27: Full Premium | D27: Non Taxable | E27: Pre-Tax Deduction | F27: After-Tax Deduction | G27: Imputed Income | H27: Full Premium | I27: Non Taxable | J27: Pre-Tax Deduction | K27: After-Tax Deduction | L27: Imputed Income | M27: Full Premium | N27: Non Taxable | O27: Pre-Tax Deduction | P27: After-Tax Deduction | Q27: Imputed Income | R27: Full Premium | S27: Non Taxable | T27: Pre-Tax Deduction | U27: After-Tax Deduction | V27: Imputed Income
B28: Employee Only | C28: $522.49 | D28: N/A | E28: N/A | F28: N/A | G28: N/A | H28: $573.54 | I28: N/A | J28: N/A | K28: N/A | L28: N/A | M28: $540.25 | N28: N/A | O28: N/A | P28: N/A | Q28: N/A | R28: $560.83 | S28: N/A | T28: N/A | U28: N/A | V28: N/A
B29: EE + DP | C29: $1,270.73 | D29: N/A | E29: N/A | F29: N/A | G29: N/A | H29: $1,319.15 | I29: N/A | J29: N/A | K29: N/A | L29: N/A | M29: $1,242.57 | N29: N/A | O29: N/A | P29: N/A | Q29: N/A | R29: $1,289.91 | S29: N/A | T29: N/A | U29: N/A | V29: N/A
B30: EE + Child(ren) | C30: $1,011.06 | D30: N/A | E30: N/A | F30: N/A | G30: N/A | H30: $1,049.58 | I30: N/A | J30: N/A | K30: N/A | L30: N/A | M30: $988.65 | N30: N/A | O30: N/A | P30: N/A | Q30: N/A | R30: $1,026.32 | S30: N/A | T30: N/A | U30: N/A | V30: N/A
A31: 16 | B31: EE + Family (including DP) | C31: $1,657.48 | D31: =D11 -> $454.69 | E31: =E11 -> $97.80 | F31: =E14-E11 -> $355.70 | G31: =C31-D31-E31-F31 -> $749.29 | H31: $1,720.63 | I31: =I11 -> $470.54 | J31: =J11 -> $103.00 | K31: =J14-J11 -> $384.12 | L31: =H31-I31-J31-K31 -> $762.97 | M31: $1,620.74 | N31: =N11 -> $478.01 | O31: =O11 -> $62.24 | P31: =O14-O11 -> $284.54 | Q31: =M31-N31-O31-P31 -> $795.95 | R31: $1,682.49 | S31: =S11 -> $496.59 | T31: =T11 -> $64.24 | U31: =T14-T11 -> $306.56 | V31: =R31-S31-T31-U31 -> $815.10
C33: Full-time EE Only + Domestic Partner Child(ren) with no DP - Monthly | H33: Full-time EE Only + Domestic Partner Child(ren) with no DP - Monthly | M33: Full-time EE Only + Domestic Partner Child(ren) with no DP - Monthly | R33: Full-time EE Only + Domestic Partner Child(ren) with no DP - Monthly
C34: Full Premium | D34: Non Taxable | E34: Pre-Tax Deduction | F34: After-Tax Deduction | G34: Imputed Income | H34: Full Premium | I34: Non Taxable | J34: Pre-Tax Deduction | K34: After-Tax Deduction | L34: Imputed Income | M34: Full Premium | N34: Non Taxable | O34: Pre-Tax Deduction | P34: After-Tax Deduction | Q34: Imputed Income | R34: Full Premium | S34: Non Taxable | T34: Pre-Tax Deduction | U34: After-Tax Deduction | V34: Imputed Income
B35: Employee Only | C35: $522.49 | D35: N/A | E35: N/A | F35: N/A | G35: N/A | H35: $573.54 | I35: N/A | J35: N/A | K35: N/A | L35: N/A | M35: $540.25 | N35: N/A | O35: N/A | P35: N/A | Q35: N/A | R35: $560.83 | S35: N/A | T35: N/A | U35: N/A | V35: N/A
B36: EE + DP | C36: $1,270.73 | D36: N/A | E36: N/A | F36: N/A | G36: N/A | H36: $1,319.15 | I36: N/A | J36: N/A | K36: N/A | L36: N/A | M36: $1,242.57 | N36: N/A | O36: N/A | P36: N/A | Q36: N/A | R36: $1,289.91 | S36: N/A | T36: N/A | U36: N/A | V36: N/A
A37: 15 | B37: EE + Child(ren) | C37: $1,011.06 | D37: =D11 -> $454.69 | E37: =E11 -> $97.80 | F37: =E13-E11 -> $170.06 | G37: =C37-D37-E37-F37 -> $288.51 | H37: $1,049.58 | I37: =I11 -> $470.54 | J37: =J11 -> $103.00 | K37: =J13-J11 -> $185.34 | L37: =H37-I37-J37-K37 -> $290.70 | M37: $988.65 | N37: =N11 -> $478.01 | O37: =O11 -> $62.24 | P37: =O13-O11 -> $140.50 | Q37: =M37-N37-O37-P37 -> $307.90 | R37: $1,026.32 | S37: =S11 -> $496.59 | T37: =T11 -> $64.24 | U37: =T13-T11 -> $153.14 | V37: =R37-S37-T37-U37 -> $312.35
B38: EE + Family (including DP) | C38: $1,657.48 | D38: N/A | E38: N/A | F38: N/A | G38: N/A | H38: $1,720.63 | I38: N/A | J38: N/A | K38: N/A | L38: N/A | M38: $1,620.74 | N38: N/A | O38: N/A | P38: N/A | Q38: N/A | R38: $1,682.49 | S38: N/A | T38: N/A | U38: N/A | V38: N/A
C40: Full-time EE with Child(ren) + Domestic Partner + DP Child(ren) - Monthly | H40: Full-time EE with Child(ren) + Domestic Partner + DP Child(ren) - Monthly | M40: Full-time EE with Child(ren) + Domestic Partner + DP Child(ren) - Monthly | R40: Full-time EE with Child(ren) + Domestic Partner + DP Child(ren) - Monthly
C41: Full Premium | D41: Non Taxable | E41: Pre-Tax Deduction | F41: After-Tax Deduction | G41: Imputed Income | H41: Full Premium | I41: Non Taxable | J41: Pre-Tax Deduction | K41: After-Tax Deduction | L41: Imputed Income | M41: Full Premium | N41: Non Taxable | O41: Pre-Tax Deduction | P41: After-Tax Deduction | Q41: Imputed Income | R41: Full Premium | S41: Non Taxable | T41: Pre-Tax Deduction | U41: After-Tax Deduction | V41: Imputed Income
B42: Employee Only | C42: $522.49 | D42: N/A | E42: N/A | F42: N/A | G42: N/A | H42: $573.54 | I42: N/A | J42: N/A | K42: N/A | L42: N/A | M42: $540.25 | N42: N/A | O42: N/A | P42: N/A | Q42: N/A | R42: $560.83 | S42: N/A | T42: N/A | U42: N/A | V42: N/A
B43: EE + DP | C43: $1,270.73 | D43: N/A | E43: N/A | F43: N/A | G43: N/A | H43: $1,319.15 | I43: N/A | J43: N/A | K43: N/A | L43: N/A | M43: $1,242.57 | N43: N/A | O43: N/A | P43: N/A | Q43: N/A | R43: $1,289.91 | S43: N/A | T43: N/A | U43: N/A | V43: N/A
B44: EE + Child(ren) | C44: $1,011.06 | D44: N/A | E44: N/A | F44: N/A | G44: N/A | H44: $1,049.58 | I44: N/A | J44: N/A | K44: N/A | L44: N/A | M44: $988.65 | N44: N/A | O44: N/A | P44: N/A | Q44: N/A | R44: $1,026.32 | S44: N/A | T44: N/A | U44: N/A | V44: N/A
B45: EE + Family (EE + Children) + DP) | C45: $1,657.48 | D45: $580.39 | E45: $227.84 | F45: $145.66 | G45: $434.73 | H45: $1,720.63 | I45: $632.63 | J45: $248.34 | K45: $158.78 | L45: $473.85 | M45: $1,620.74 | N45: $537.40 | O45: $162.74 | P45: $104.04 | Q45: $433.36 | R45: $1,682.49 | S45: $585.76 | T45: $177.38 | U45: $113.42 | V45: $472.34
